bitfinex-derivatives/quotes_BNBF0:USTF0_20250715
["timestamp","ask_amount","ask_price","bid_price","bid_amount"]
[1752584926503,0.98563407,683.85,682.91,0.97679688]
[1752584926798,0.254452,684.37,682.94,0.97679688]
[1752584926799,0.98563407,683.81,682.94,0.97679688]
[1752584927103,1.3095362,684.05,682.94,0.97679688]
[1752584927104,0.98563407,683.8,682.94,0.97679688]
[1752584927304,0.98563407,683.79,682.95,0.97679688]
[1752584928004,0.98563407,683.78,682.95,0.97679688]
[1752584929206,0.98563407,683.8,682.97,0.97679688]
[1752584929607,0.98563407,683.79,682.98,0.97679688]
[1752584930305,0.98563407,683.78,682.99,0.97679688]
[1752584930508,0.98563407,683.71,683.03,0.97679688]
[1752584930706,0.98563407,683.7,683.04,0.97679688]
[1752584931209,0.98563407,683.69,683.04,0.97679688]
[1752584932410,0.98563407,683.72,683.03,0.97679688]
[1752584932611,0.98563407,683.82,682.97,0.97679688]
[1752584932808,0.98563407,683.86,682.96,0.97679688]
[1752584933509,0.98563407,683.78,683.01,0.97679688]
[1752584934410,0.98563407,683.81,683.04,0.97679688]
[1752584934814,0.98563407,683.75,683.08,0.97679688]
[1752584935016,0.98563407,683.88,683.21,0.97679688]
[1752584935311,0.98563407,683.9,683.2,0.97679688]
[1752584936316,0.98563407,683.91,683.19,0.97679688]
[1752584937916,0.98563407,683.92,683.18,0.97679688]
[1752584938314,0.98563407,683.93,683.18,0.97679688]
[1752584939313,0.98563407,683.93,683.17,0.97679688]
[1752584940516,0.98563407,683.91,683.18,0.97679688]
[1752584940721,0.98563407,683.94,683.16,0.97679688]
[1752584941020,0.98563407,683.92,683.14,0.97679688]
[1752584941221,0.98563407,683.93,683.14,0.97679688]
[1752584941417,0.98563407,683.92,683.15,0.97679688]
[1752584941719,0.98563407,683.92,683.14,0.97679688]
[1752584942117,0.98563407,683.93,683.15,0.97679688]
[1752584942417,0.98563407,683.94,683.15,0.97679688]
[1752584942820,0.98563407,683.93,683.15,0.97679688]
[1752584943521,0.98563407,683.94,683.15,0.97679688]
[1752584944523,0.98563407,683.95,683.15,0.97679688]
[1752584945324,0.98563407,683.95,683.14,0.97679688]
[1752584945726,0.98563407,683.86,683.05,0.97679688]
[1752584946728,1.3095362,684.04,681.86,0.25457299]
[1752584946729,0.98563407,683.91,683.16,0.97679688]
[1752584947028,0.98563407,684.16,683.4,0.97679688]
[1752584947324,0.98563407,684.19,683.38,0.97679688]
[1752584947929,0.98563407,684.2,683.37,0.97679688]
[1752584948429,0.98563407,684.22,683.35,0.97679688]
[1752584949326,0.98563407,684.23,683.33,0.97679688]
[1752584950328,0.98563407,684.24,683.32,0.97679688]
[1752584950627,0.98563407,684.24,683.31,0.97679688]
[1752584950832,0.98563407,684.23,683.32,0.97679688]
[1752584951127,0.98563407,684.23,683.15,1.2977469]
[1752584951128,0.98563407,684.23,683.33,0.97679688]
[1752584951331,0.98563407,684.24,683.31,0.97679688]
[1752584952030,0.98563407,684.23,683.32,0.97679688]
[1752584952428,0.98563407,684.24,683.31,0.97679688]
[1752584952630,0.98563407,684.23,683.31,0.97679688]
[1752584952829,0.98563407,684.24,683.3,0.97679688]
[1752584953230,0.98563407,684.25,683.29,0.97679688]
[1752584953929,0.98563407,684.26,683.3,0.97679688]
[1752584954136,0.98563407,684.28,683.32,0.97679688]
[1752584954333,0.98563407,684.28,683.3,0.97679688]
[1752584955134,0.98563407,684.29,683.31,0.97679688]
[1752584955432,0.98563407,684.29,683.29,0.97679688]
[1752584955630,0.98563407,684.29,683.3,0.97679688]
[1752584955833,0.25443432,684.44,682.33,3.2443672]
[1752584955834,0.98563407,684.3,683.31,0.97679688]
[1752584956232,0.98563407,684.32,683.29,0.97679688]
[1752584956428,0.98563407,684.33,683.29,0.97679688]
[1752584956832,0.98563407,684.32,683.29,0.97679688]
[1752584957434,0.98563407,684.33,683.28,0.97679688]
[1752584957933,0.98563407,684.32,683.29,0.97679688]
[1752584958334,0.98563407,684.32,683.28,0.97679688]
[1752584958633,0.98563407,684.39,683.24,0.97679688]
[1752584959030,0.98563407,684.52,683.39,0.97679688]
[1752584959435,0.98563407,684.54,683.37,0.97679688]
[1752584960234,0.98563407,684.56,683.35,0.97679688]
[1752584960433,0.98563407,684.59,683.38,0.97679688]
[1752584961229,0.98563407,684.6,683.36,0.97679688]
[1752584961429,0.98563407,684.65,683.41,0.97679688]
[1752584961730,0.98563407,684.64,683.42,0.97679688]
[1752584961929,0.98563407,684.66,683.43,0.97679688]
[1752584962129,0.98563407,684.64,683.45,0.97679688]
[1752584962432,0.98563407,684.62,683.45,0.97679688]
[1752584962934,0.98563407,684.63,683.44,0.97679688]
[1752584963233,0.98563407,684.64,683.42,0.97679688]
[1752584963729,0.98563407,684.66,683.41,0.97679688]
[1752584964133,0.98563407,684.65,683.41,0.97679688]
[1752584964333,0.98563407,684.66,683.4,0.97679688]
[1752584965234,0.98563407,684.67,683.38,0.97679688]
[1752584966536,0.98563407,684.68,683.37,0.97679688]
[1752584967136,0.98563407,684.66,683.38,0.97679688]
[1752584967532,0.98563407,684.62,683.4,0.97679688]
[1752584967836,0.98563407,684.63,683.4,0.97679688]
[1752584968234,0.98563407,684.63,683.39,0.97679688]
[1752584968533,0.98563407,684.62,683.39,0.97679688]
[1752584968733,0.98563407,684.62,683.38,0.97679688]
[1752584969237,0.98563407,684.63,683.38,0.97679688]
[1752584969438,0.98563407,684.64,683.37,0.97679688]
[1752584969737,0.98563407,684.63,683.36,0.97679688]
[1752584970237,0.98563407,684.69,683.32,0.97679688]
[1752584970434,0.98563407,684.67,683.33,0.97679688]
[1752584970639,0.98563407,684.61,683.26,0.97679688]
[1752584972340,0.98563407,684.61,683.25,0.97679688]
[1752584972841,0.98563407,684.62,683.25,0.97679688]
[1752584974442,0.98563407,684.63,683.25,0.97679688]
[1752584974644,0.98563407,684.63,683.24,0.97679688]
[1752584975242,0.98563407,684.63,683.07,1.2977469]
[1752584975243,0.98563407,684.63,683.25,0.97679688]
[1752584975742,0.98563407,684.63,681.83,4.5421142]
[1752584975743,0.98563407,684.57,683.28,0.97679688]
[1752584976241,0.98563407,684.57,683.29,0.97679688]
[1752584977346,0.98563407,684.56,683.29,0.97679688]
[1752584977948,0.98563407,684.58,683.27,0.97679688]
[1752584978246,0.98563407,684.59,683.27,0.97679688]
[1752584978447,1.3095362,684.74,683.12,1.2977469]
[1752584978744,0.97492665,684.59,683.27,0.96457746]
[1752584979242,0.97492665,684.58,683.28,0.96457746]
[1752584979549,0.97492665,684.59,683.14,0.96457746]
[1752584980246,0.97492665,684.58,683.14,0.96457746]
[1752584980744,0.97492665,684.57,683.14,0.96457746]
[1752584981547,0.97492665,684.57,683.15,0.96457746]
[1752584982045,0.97492665,684.56,683.17,0.96457746]
[1752584982343,0.97492665,684.59,683.18,0.96457746]
[1752584982544,0.97492665,684.57,683.23,0.96457746]
[1752584982744,0.97492665,684.66,683.32,0.96457746]
[1752584983044,0.97492665,684.63,683.38,0.96457746]
[1752584983545,0.97492665,684.63,683.23,1.2977469]
[1752584983546,0.97492665,684.62,683.39,0.96457746]
[1752584983951,0.97492665,684.63,683.39,0.96457746]
[1752584984246,0.97492665,684.62,683.39,0.96457746]
[1752584985246,0.97492665,684.61,683.39,0.96457746]
[1752584985752,0.97492665,684.6,683.38,0.96457746]
[1752584986154,0.97492665,684.59,683.37,0.96457746]
[1752584986651,0.97492665,684.58,683.38,0.96457746]
[1752584986854,0.97492665,684.56,683.4,0.96457746]
[1752584987055,0.97492665,684.68,683.31,0.96457746]
[1752584987255,0.97492665,684.67,683.31,0.96457746]
[1752584987653,0.97492665,684.68,683.31,0.96457746]
[1752584988256,0.97492665,684.67,683.32,0.96457746]
[1752584988555,0.97492665,684.55,683.21,0.96457746]
[1752584988752,0.97492665,684.56,683.21,0.96457746]
[1752584989155,0.97492665,684.56,683.23,0.96457746]
[1752584989355,0.97492665,684.52,683.24,0.96457746]
[1752584990254,0.97492665,684.51,683.26,0.96457746]
[1752584990857,0.97492665,684.52,683.25,0.96457746]
[1752584991152,0.97492665,684.43,683.31,0.96457746]
[1752584991354,0.97492665,684.42,683.32,0.96457746]
[1752584991754,0.97492665,684.43,683.32,0.96457746]
[1752584992257,0.97492665,684.42,683.33,0.96457746]
[1752584993359,0.97492665,684.41,683.35,0.96457746]
[1752584993554,0.25430045,684.89,683.32,0.96457746]
[1752584993555,0.97492665,684.39,683.32,0.96457746]
[1752584994260,0.97492665,684.38,683.34,0.96457746]
[1752584994556,0.97492665,684.33,683.3,0.96457746]
[1752584995359,0.97492665,684.33,683.31,0.96457746]
[1752584995560,0.97492665,684.32,683.31,0.96457746]
[1752584995761,0.97492665,684.34,683.3,0.96457746]
[1752584996363,1.9643044,684.65,683.31,0.96457746]
[1752584996364,0.97492665,684.33,683.31,0.96457746]
[1752584997165,0.97492665,684.4,683.26,0.96457746]
[1752584997365,0.97492665,684.4,683.27,0.96457746]
[1752584997662,0.97492665,684.42,683.29,0.96457746]
[1752584998266,0.97492665,684.41,683.3,0.96457746]
[1752584998866,0.97492665,684.42,683.29,0.96457746]
[1752584999063,0.97492665,684.42,683.3,0.96457746]
[1752584999368,0.97492665,684.41,683.31,0.96457746]
[1752584999867,0.97492665,684.42,683.31,0.96457746]
[1752585001663,0.97492665,684.45,683.36,0.96457746]
[1752585002263,0.97492665,684.44,683.38,0.96457746]
[1752585002968,0.97492665,684.38,683.41,0.96457746]
[1752585003368,0.97492665,684.35,683.39,0.96457746]
[1752585003569,0.97492665,684.34,683.4,0.96457746]
[1752585004564,0.97492665,684.33,683.42,0.96457746]
[1752585004768,0.97492665,684.31,683.43,0.96457746]
[1752585005266,0.97492665,684.29,683.45,0.96457746]
[1752585005664,0.97492665,684.27,683.46,0.96457746]
[1752585005868,0.97492665,684.17,683.34,0.96457746]
[1752585006070,0.97492665,684.18,683.34,0.96457746]
[1752585006366,0.97492665,684.16,683.37,0.96457746]
[1752585006769,0.97492665,684.19,683.35,0.96457746]
[1752585007171,0.97492665,684.17,683.32,0.96457746]
[1752585007369,0.97492665,684.13,683.28,0.96457746]
[1752585007866,0.97492665,684.14,683.28,0.96457746]
[1752585008666,0.97492665,684.15,683.27,0.96457746]
[1752585009173,0.97492665,684.17,683.26,0.96457746]
[1752585009376,0.97492665,684.16,683.26,0.96457746]
[1752585010272,0.97492665,684.16,683.25,0.96457746]
[1752585010472,0.97492665,684.15,683.26,0.96457746]
[1752585010772,0.97492665,684.1,683.19,0.96457746]
[1752585011374,0.97492665,684.11,683.18,0.96457746]
[1752585011675,0.97492665,684.07,683.14,0.96457746]
[1752585012173,0.25430045,684.89,683.11,0.96457746]
[1752585012174,0.97492665,684.04,683.11,0.96457746]
[1752585012375,0.97492665,684.04,683.1,0.96457746]
[1752585012870,0.97492665,684.05,683.1,0.96457746]
[1752585013371,0.25430045,684.89,682.9,1.2977469]
[1752585013372,0.97492665,684.01,683.08,0.96457746]
[1752585013571,0.97492665,683.98,683.1,0.96457746]
[1752585014271,0.97492665,683.99,683.09,0.96457746]
[1752585014972,0.97492665,684.01,683.11,0.96457746]
[1752585015172,0.97492665,684.02,683.09,0.96457746]
[1752585016375,0.97492665,684.02,683.08,0.96457746]
[1752585017181,0.97492665,684.05,683.07,0.96457746]
[1752585017378,0.97492665,684.05,683.06,0.96457746]
[1752585017980,0.97492665,684.07,683.05,0.96457746]
[1752585018180,0.97492665,684.04,683.07,0.96457746]
[1752585018380,0.97492665,684.05,683.06,0.96457746]
[1752585018779,0.97492665,684.09,683.09,0.96457746]
[1752585018977,0.97492665,684.15,683.16,0.96457746]
[1752585019281,0.97492665,684.16,683.16,0.96457746]
[1752585019577,0.97492665,684.2,683.13,0.96457746]
[1752585020276,0.97492665,684.21,683.13,0.96457746]
[1752585020479,0.97492665,684.21,682.93,1.2977469]
[1752585020480,0.97492665,684.2,683.12,0.96457746]
[1752585020675,0.97492665,684.21,683.12,0.96457746]
[1752585020879,0.97492665,684.21,683.13,0.96457746]
[1752585021476,0.97492665,684.23,683.17,0.96457746]
[1752585021676,0.97492665,684.25,683.19,0.96457746]
[1752585022179,0.97492665,684.25,683.2,0.96457746]
[1752585022379,0.97492665,684.34,683.28,0.96457746]
[1752585022581,0.97492665,684.29,683.32,0.96457746]
[1752585022882,0.97492665,684.28,683.33,0.96457746]
[1752585023580,0.97492665,684.27,683.34,0.96457746]
[1752585024284,0.97492665,684.26,683.34,0.96457746]
[1752585025586,0.97492665,684.28,683.36,0.96457746]
[1752585026184,0.97492665,684.28,683.37,0.96457746]
[1752585026585,0.97492665,684.31,683.4,0.96457746]
[1752585026787,0.97492665,684.32,683.4,0.96457746]
[1752585027080,0.97492665,684.35,683.38,0.96457746]
[1752585027284,0.97492665,684.34,683.39,0.96457746]
[1752585027886,0.97492665,684.41,683.44,0.96457746]
[1752585028287,0.97492665,684.4,683.45,0.96457746]
[1752585028687,0.97492665,684.41,683.45,0.96457746]
[1752585030189,0.97492665,684.4,683.45,0.96457746]
[1752585031290,0.97492665,684.4,683.46,0.96457746]
[1752585032190,0.97492665,684.4,683.45,0.96457746]
[1752585032490,0.97492665,684.4,683.46,0.96457746]
[1752585032988,0.97492665,684.48,683.4,0.96457746]
[1752585033388,0.97492665,684.47,683.41,0.96457746]
[1752585034291,0.97492665,684.47,683.4,0.96457746]
[1752585035493,0.97492665,684.49,683.39,0.96457746]
[1752585035897,0.97492665,684.53,683.36,0.96457746]
[1752585036191,0.97492665,684.54,683.36,0.96457746]
[1752585036395,0.97492665,684.54,683.37,0.96457746]
[1752585036897,0.97492665,684.53,683.37,0.96457746]
[1752585037093,0.97492665,684.49,683.4,0.96457746]
[1752585038597,0.97492665,684.54,683.37,0.96457746]
[1752585039995,0.97492665,684.49,683.43,0.96457746]
[1752585040397,0.97492665,684.49,683.44,0.96457746]
[1752585040700,0.97492665,684.53,683.47,0.96457746]
[1752585040896,0.97492665,684.6,683.55,0.96457746]
[1752585041299,0.97492665,684.6,683.54,0.96457746]
[1752585041698,0.97492665,684.61,683.54,0.96457746]
[1752585042098,0.97492665,684.61,683.33,1.2977469]
[1752585042099,0.97492665,684.58,683.56,0.96457746]
[1752585042298,0.97492665,684.66,683.63,0.96457746]
[1752585044304,0.97492665,684.67,683.62,0.96457746]
[1752585044906,0.97492665,684.73,683.58,0.96457746]
[1752585046303,0.97492665,684.73,683.57,0.96457746]
[1752585047305,0.97492665,684.74,683.57,0.96457746]
[1752585047808,0.97492665,684.7,683.59,0.96457746]
[1752585048110,0.97492665,684.83,683.7,0.96457746]
[1752585048303,0.97492665,684.83,683.69,0.96457746]
[1752585049309,0.97492665,684.84,683.67,0.96457746]
[1752585049506,0.97492665,684.82,683.67,0.96457746]
[1752585050310,0.97492665,684.83,683.66,0.96457746]
[1752585050806,0.97492665,684.87,683.63,0.96457746]
[1752585051410,0.97492665,684.87,683.62,0.96457746]
[1752585051910,0.25430045,684.89,683.64,0.96457746]
[1752585051911,0.97492665,684.85,683.64,0.96457746]
[1752585052311,0.97492665,684.86,683.62,0.96457746]
[1752585053113,0.97492665,684.87,683.62,0.96457746]
[1752585053409,0.97492665,684.88,683.61,0.96457746]
[1752585053914,0.25430045,684.89,683.58,0.96457746]
[1752585054110,0.25430045,684.89,683.58,0.96699647]
[1752585054310,0.25430045,684.89,683.57,0.96699647]
[1752585054510,0.25430045,684.89,683.56,0.96699647]
[1752585055413,0.25430045,684.89,683.55,0.96699647]
[1752585056710,0.25430045,684.89,683.52,0.96699647]
[1752585056914,0.25430045,684.89,683.53,0.96699647]
[1752585057315,0.25430045,684.89,683.52,0.96699647]
[1752585057616,0.25430045,684.89,683.54,0.96699647]
[1752585058714,0.25430045,684.89,683.55,0.96699647]
[1752585060112,0.25430045,684.89,683.3,1.2977469]
[1752585060113,0.25430045,684.89,683.52,0.96699647]
[1752585060715,0.25430045,684.89,683.53,0.96699647]
[1752585062315,0.25430045,684.89,683.52,0.96699647]
[1752585062821,0.25430045,684.89,683.53,0.96699647]
[1752585063116,0.25430045,684.89,683.55,0.96699647]
[1752585063317,0.25430045,684.89,683.52,0.96498081]
[1752585063522,0.97570723,685.05,683.52,0.96498081]
[1752585063822,0.97570723,685.02,683.54,0.96498081]
[1752585064121,0.97570723,684.98,683.57,0.96498081]
[1752585064320,0.97570723,684.99,683.56,0.96498081]
[1752585064717,0.97570723,684.98,683.56,0.96498081]
[1752585064921,0.97570723,684.98,683.57,0.96498081]
[1752585065318,0.97570723,684.98,683.56,0.96498081]
[1752585065519,0.97570723,684.99,683.56,0.96498081]
[1752585066123,0.97570723,684.93,683.62,0.96498081]
[1752585066320,0.97570723,684.92,683.62,0.96498081]
[1752585067124,0.97570723,685.13,683.83,0.96498081]
[1752585067419,0.97570723,685.13,683.66,1.2977469]
[1752585067420,0.97570723,685.19,683.86,0.96498081]
[1752585067921,0.25419922,685.23,683.8,0.96498081]
[1752585068125,0.25419922,685.23,683.79,0.96498081]
[1752585068526,0.97570723,685.28,683.79,0.96498081]
[1752585069220,0.97570723,685.29,683.87,0.96498081]
[1752585069425,0.25413053,685.32,683.87,0.96498081]
[1752585070325,0.25413053,685.32,683.43,1.9466203]
[1752585070326,0.25413053,685.32,683.86,0.96498081]
[1752585071321,0.25413053,685.32,683.85,0.96498081]
[1752585071522,1.22983776,685.32,683.91,0.96498081]
[1752585071724,0.97570723,685.31,683.91,0.96498081]
[1752585072322,0.97570723,685.3,683.91,0.96498081]
[1752585073328,0.25413053,685.32,683.91,0.96498081]
[1752585073329,0.97570723,685.31,683.91,0.96498081]
[1752585073528,0.97570723,685.28,683.92,0.96498081]
[1752585073729,0.97570723,685.28,683.93,0.96498081]
[1752585074025,0.97570723,685.28,683.65,1.9466203]
[1752585074026,0.97570723,685.27,683.94,0.96498081]
[1752585074425,0.97570723,685.27,683.93,0.96498081]
[1752585074626,0.97570723,685.27,683.94,0.96498081]
[1752585075026,0.97570723,685.27,683.67,1.9466203]
[1752585075027,0.97570723,685.27,683.93,0.96498081]
[1752585075429,0.97570723,685.29,683.91,0.96498081]
[1752585075930,0.25413053,685.32,683.89,0.96498081]
[1752585077133,0.97570723,685.31,683.9,0.96498081]
[1752585077334,0.97570723,685.31,683.89,0.96498081]
[1752585077530,0.97570723,685.3,683.91,0.96498081]
[1752585077834,0.97570723,685.27,683.92,0.96498081]
[1752585078036,0.97570723,685.29,683.91,0.96498081]
[1752585078334,0.25413053,685.32,683.85,0.96498081]
[1752585079135,0.25413053,685.32,683.84,0.96498081]
[1752585079333,0.25413053,685.32,683.85,0.96498081]
[1752585079531,0.25413053,685.32,683.82,0.96498081]
[1752585079837,0.25413053,685.32,683.75,0.96498081]
[1752585080234,0.25413053,685.32,683.76,0.96498081]
[1752585080432,0.25413053,685.32,683.72,0.96498081]
[1752585080636,0.25413053,685.32,683.73,0.96498081]
[1752585080933,0.25413053,685.32,683.75,0.96498081]
[1752585081238,0.97570723,685.28,683.7,0.96498081]
[1752585081633,0.97570723,685.22,683.72,0.96498081]
[1752585081937,0.97570723,685.15,683.77,0.96498081]
[1752585082137,0.97570723,685.2,683.83,0.96498081]
[1752585082534,0.97570723,685.19,683.83,0.96498081]
[1752585082833,0.97570723,685.12,683.76,0.96498081]
[1752585083034,0.97570723,685.06,683.68,0.96498081]
[1752585083234,0.97570723,685.06,683.69,0.96498081]
[1752585083437,0.97570723,685.06,682.62,3.2443672]
[1752585083438,0.97570723,685.03,683.66,0.96498081]
[1752585083638,0.97570723,685.03,683.48,1.2977469]
[1752585083639,0.97570723,684.95,683.59,0.96498081]
[1752585084534,0.97570723,684.96,683.58,0.96498081]
[1752585085239,0.97570723,684.95,683.59,0.96498081]
[1752585085440,0.97570723,685.0,683.61,0.96498081]
[1752585085739,0.97570723,685.13,683.62,0.96498081]
[1752585085939,0.97570723,685.12,683.63,0.96498081]
[1752585086340,0.97570723,685.12,683.64,0.96498081]
[1752585087036,0.97570723,685.11,683.64,0.96498081]
[1752585087435,0.97570723,685.11,683.65,0.96498081]
[1752585088141,0.97570723,685.11,683.66,0.96498081]
[1752585088635,0.97570723,685.1,683.66,0.96498081]
[1752585089040,0.97570723,685.08,683.68,0.96498081]
[1752585089240,0.97570723,685.07,683.69,0.96498081]
[1752585089440,0.97570723,685.06,683.71,0.96498081]
[1752585089941,0.97570723,685.02,683.73,0.96498081]
[1752585090141,0.97570723,685.02,683.74,0.96498081]
[1752585090839,0.97570723,685.0,683.75,0.96498081]
[1752585091344,0.97570723,684.98,683.78,0.96498081]
[1752585091639,0.25413053,685.32,682.82,3.2443672]
[1752585091640,0.97570723,685.02,683.82,0.96498081]
[1752585092046,0.97570723,685.06,683.88,0.96498081]
[1752585092343,0.97570723,685.07,683.9,0.96498081]
[1752585092647,0.97570723,685.08,683.89,0.96498081]
[1752585093046,0.97570723,685.1,683.88,0.96498081]
[1752585093243,0.97570723,685.09,683.89,0.96498081]
[1752585093947,0.97570723,685.12,683.91,0.96498081]
[1752585094148,0.97570723,685.15,683.89,0.96498081]
[1752585094347,0.97570723,685.15,683.9,0.96498081]
[1752585094849,0.97570723,685.15,682.75,3.2443672]
[1752585094850,0.97570723,685.16,683.91,0.96498081]
[1752585095044,0.97570723,685.16,683.72,1.2977469]
[1752585095045,0.97570723,685.2,683.89,0.96498081]
[1752585095247,0.97570723,685.2,683.9,0.96498081]
[1752585095449,0.97570723,685.19,683.9,0.96498081]
[1752585095747,0.97570723,685.18,683.9,0.96498081]
[1752585095950,0.97669841,685.16,683.92,0.96471993]
[1752585096252,0.97669841,685.16,683.94,0.96471993]
[1752585096952,0.97669841,685.1,683.98,0.96471993]
[1752585097148,0.97669841,685.11,683.99,0.96471993]
[1752585097353,0.97669841,685.23,683.92,0.96471993]
[1752585097952,0.97669841,685.12,683.99,0.96471993]
[1752585098252,0.97669841,685.11,684.0,0.96471993]
[1752585098448,0.97669841,685.09,684.02,0.96471993]
[1752585099250,0.97669841,685.16,684.11,0.96471993]
[1752585100354,0.97669841,685.16,684.13,0.96471993]
[1752585100649,0.25413053,685.32,682.89,4.5421142]
[1752585100650,0.97669841,685.13,684.1,0.96471993]
[1752585100850,0.97669841,685.09,684.13,0.96471993]
[1752585101148,0.97669841,685.1,684.13,0.96471993]
[1752585101351,0.97669841,685.09,684.14,0.96471993]
[1752585101550,0.97669841,685.1,684.13,0.96471993]
[1752585101753,0.97669841,685.15,684.1,0.96471993]
[1752585101954,0.97669841,685.14,684.09,0.96471993]
[1752585102352,0.97669841,685.13,684.1,0.96471993]
[1752585102652,0.97669841,685.12,684.11,0.96471993]
[1752585103056,0.97669841,685.14,684.11,0.96471993]
[1752585103258,0.97669841,685.16,684.13,0.96471993]
[1752585103558,0.97669841,685.12,684.1,0.96471993]
[1752585104153,0.97669841,685.01,684.11,0.96471993]
[1752585104354,0.97669841,685.0,684.11,0.96471993]
[1752585104553,0.97669841,685.02,684.1,0.96471993]
[1752585105254,0.97669841,685.02,684.11,0.96471993]
[1752585105458,0.97669841,685.01,684.11,0.96471993]
[1752585105658,0.25413053,685.32,684.11,0.96471993]
[1752585105659,0.97669841,685.02,684.11,0.96471993]
[1752585105954,0.97669841,685.02,684.09,0.96471993]
[1752585106156,0.97669841,685.0,684.07,0.96471993]
[1752585106357,0.97669841,684.97,684.05,0.96471993]
[1752585106758,0.97669841,684.96,684.05,0.96471993]
[1752585107059,0.97669841,684.96,684.04,0.96471993]
[1752585107254,0.97669841,684.96,684.05,0.96471993]
[1752585107558,0.97669841,684.96,684.06,0.96471993]
[1752585109160,0.97669841,684.95,684.07,0.96471993]
[1752585110160,0.97669841,684.95,684.06,0.96471993]
[1752585110461,0.97669841,684.95,684.07,0.96471993]
[1752585110960,0.97669841,684.96,684.06,0.96471993]
[1752585111161,0.97669841,684.96,684.07,0.96471993]
[1752585111354,0.97669841,684.97,684.07,0.96471993]
[1752585111555,0.97669841,684.97,684.06,0.96471993]
[1752585112055,0.97669841,684.97,684.05,0.96471993]
[1752585112257,0.97669841,684.97,683.89,1.2977469]
[1752585112258,0.97669841,685.0,684.03,0.96471993]
[1752585112560,0.97669841,684.88,683.91,0.96471993]
[1752585112756,0.97669841,684.78,683.81,0.96471993]
[1752585113060,0.97669841,684.79,683.81,0.96471993]
[1752585113261,0.97669841,684.78,683.81,0.96471993]
[1752585114159,0.97669841,684.79,683.81,0.96471993]
[1752585114364,0.97669841,684.78,683.81,0.96471993]
[1752585114659,0.98046834,684.78,683.81,0.96896594]
[1752585115863,0.98046834,684.78,683.82,0.96896594]
[1752585117161,0.98046834,684.8,683.84,0.96896594]
[1752585121473,0.98046834,684.79,683.84,0.96896594]
[1752585122071,0.9806863,684.77,683.86,0.96912704]
[1752585122874,0.9806863,684.76,683.86,0.96912704]
[1752585123974,0.9806863,684.76,683.87,0.96912704]
[1752585124273,0.9806863,684.76,683.55,1.9466203]
[1752585124274,0.9806863,684.79,683.85,0.96912704]
[1752585124473,0.9806863,684.79,683.84,0.96912704]
[1752585126177,0.9806863,684.79,683.85,0.96912704]
[1752585127474,0.9806863,684.79,683.84,0.96912704]
[1752585127978,0.9806863,684.8,683.83,0.96912704]
[1752585129376,0.9806863,684.81,683.82,0.96912704]
[1752585130182,0.9806863,684.81,683.83,0.96912704]
[1752585130478,0.9806863,684.81,683.82,0.96912704]
[1752585130883,0.9806863,684.82,683.78,0.96912704]
[1752585131179,0.9806863,684.78,683.74,0.96912704]
[1752585131378,0.9806863,684.77,683.74,0.96912704]
[1752585131583,0.9806863,684.68,683.74,0.96912704]
[1752585132278,0.9806863,684.71,683.77,0.96912704]
[1752585132483,0.9806863,684.7,683.78,0.96912704]
[1752585133483,0.9806863,684.69,683.78,0.96912704]
[1752585133784,0.9806863,684.74,683.82,0.96912704]
[1752585134186,0.9806863,684.73,683.82,0.96912704]
[1752585134382,0.9806863,684.74,683.82,0.96912704]
[1752585135186,0.9806863,684.73,683.83,0.96912704]
[1752585136084,0.9806863,684.71,683.85,0.96912704]
[1752585136288,0.9806863,684.7,683.85,0.96912704]
[1752585136589,0.9806863,684.68,683.87,0.96912704]
[1752585138096,0.9806863,684.75,683.9,0.96912704]
[1752585138296,0.9806863,684.8,683.87,0.96912704]
[1752585139198,0.9806863,684.79,683.88,0.96912704]
[1752585139898,0.9806863,684.8,683.88,0.96912704]
[1752585140297,0.9806863,684.79,683.88,0.96912704]
[1752585140699,0.9806863,684.8,683.88,0.96912704]
[1752585140894,0.9806863,684.79,683.88,0.96912704]
[1752585142197,0.9806863,684.76,683.91,0.96912704]
[1752585142499,0.9806863,684.75,683.91,0.96912704]
[1752585143096,0.9806863,684.77,683.9,0.96912704]
[1752585143400,0.9806863,684.76,683.91,0.96912704]
[1752585143597,0.9806863,684.77,683.9,0.96912704]
[1752585143797,0.9806863,684.81,683.93,0.96912704]
[1752585144501,0.9806863,684.95,684.06,0.96912704]
[1752585147103,0.9806863,684.95,684.07,0.96912704]
[1752585148207,0.9806863,684.97,684.05,0.96912704]
[1752585149308,0.9806863,684.99,684.03,0.96912704]
[1752585149509,0.9806863,684.99,684.04,0.96912704]
[1752585150208,0.9806863,684.99,684.03,0.96912704]
[1752585150808,0.9806863,684.99,684.04,0.96912704]
[1752585151007,0.9806863,684.99,684.03,0.96912704]
[1752585151205,0.9806863,684.98,684.04,0.96912704]
[1752585151405,0.9806863,684.97,684.04,0.96912704]
[1752585152211,0.9806863,684.91,683.98,0.96912704]
[1752585152511,0.9806863,684.87,683.97,0.96912704]
[1752585153507,0.9806863,684.88,683.99,0.96912704]
[1752585153810,0.9806863,684.89,683.99,0.96912704]
[1752585154211,0.9806863,684.84,684.02,0.96912704]
[1752585155914,0.9806863,684.84,684.03,0.96912704]
[1752585157213,0.9806863,684.85,684.04,0.96912704]
[1752585158018,0.9806863,684.86,684.03,0.96912704]
[1752585158416,0.9806863,684.85,684.04,0.96912704]
[1752585159316,0.9806863,684.84,684.04,0.96912704]